bitfinex-derivatives/quotes_BTCF0:USTF0_20260214
["timestamp","ask_amount","ask_price","bid_price","bid_amount"]
[1771111259671,0.01436,69914.0,69913.0,0.014311]
[1771111260157,0.13044,69921.0,69913.0,0.014311]
[1771111260367,0.01436,69920.0,69913.0,0.014311]
[1771111260653,0.014308,69929.0,69916.0,0.01431]
[1771111260860,0.15748,69928.0,69922.0,0.014309]
[1771111261056,0.15748,69927.0,69926.0,0.014308]
[1771111261260,0.15748,69927.0,69922.0,0.014309]
[1771111261261,0.01436,69927.0,69922.0,0.014309]
[1771111261457,0.01436,69927.0,69923.0,0.014309]
[1771111261653,0.01436,69927.0,69925.0,0.014308]
[1771111261854,5.2e-07,69920.0,69919.0,0.1515517]
[1771111262058,0.01436,69926.0,69923.0,0.014309]
[1771111262259,0.01436,69928.0,69923.0,0.014309]
[1771111262554,0.01236046,69928.0,69923.0,0.014309]
[1771111262761,4.8e-07,69920.0,69919.0,0.01431]
[1771111263154,0.014305,69940.0,69922.0,0.14579266]
[1771111263360,0.014306,69937.0,69929.0,0.014308]
[1771111263655,0.014306,69937.0,69925.0,0.16010066]
[1771111263656,3e-08,69926.0,69925.0,0.16010066]
[1771111263855,1.4e-07,69926.0,69925.0,0.1658597]
[1771111264062,1.4e-07,69926.0,69925.0,0.3232997]
[1771111265462,1.4e-07,69926.0,69925.0,0.3242997]
[1771111266260,0.01436,69937.0,69933.0,0.014307]
[1771111266455,2.5e-07,69929.0,69928.0,0.014308]
[1771111266656,8.7e-07,69929.0,69928.0,0.014308]
[1771111271863,8.7e-07,69937.0,69932.0,0.09435784]
[1771111272067,0.01436,69939.0,69937.0,0.014306]
[1771111272363,0.14308,69947.0,69936.0,0.10097254]
[1771111272561,0.01436,69946.0,69943.0,0.014305]
[1771111272768,4.3e-07,69938.0,69937.0,0.014306]
[1771111272964,8.7e-07,69938.0,69937.0,0.014306]
[1771111274555,0.014303,69953.0,69945.0,0.014304]
[1771111274760,0.171743,69952.0,69945.0,0.014304]
[1771111274960,0.171743,69952.0,69937.0,0.26129981]
[1771111275156,5e-08,69938.0,69937.0,0.26129981]
[1771111275359,0.01436,69948.0,69944.0,0.014304]
[1771111275668,8.8e-07,69941.0,69940.0,0.014305]
[1771111275868,0.01436,69950.0,69944.0,0.014304]
[1771111276067,0.01436,69950.0,69941.0,0.07168098]
[1771111276270,0.014304,69949.0,69941.0,0.01449838]
[1771111276465,0.014304,69947.0,69941.0,0.01449838]
[1771111276666,2.4e-07,69941.0,69940.0,0.02861]
[1771111278265,2.4e-07,69941.0,69940.0,0.014305]
[1771111278462,0.014307,69933.0,69924.0,0.014309]
[1771111278666,0.01430724,69934.0,69925.0,0.01436]
[1771111278868,0.014307,69933.0,69925.0,0.028668]
[1771111279066,0.014307,69933.0,69925.0,0.01436]
[1771111279360,0.014307,69933.0,69925.0,0.028668]
[1771111279765,2.4e-07,69934.0,69930.0,0.014307]
[1771111280068,2.4e-07,69934.0,69931.0,0.014307]
[1771111280268,2.4e-07,69934.0,69930.0,0.014307]
[1771111280468,2.4e-07,69934.0,69929.0,0.014308]
[1771111281675,0.014307,69933.0,69925.0,0.01436]
[1771111282073,0.01430724,69934.0,69926.0,0.014308]
[1771111282373,0.014307,69933.0,69925.0,0.028668]
[1771111282869,0.01430724,69934.0,69926.0,0.014308]
[1771111283771,0.014307,69933.0,69925.0,0.028668]
[1771111284777,0.014307,69932.0,69925.0,0.01436]
[1771111284969,0.014307,69933.0,69925.0,0.01436]
[1771111285474,0.014307,69933.0,69925.0,0.028668]
[1771111286667,2.4e-07,69934.0,69928.0,0.014308]
[1771111293172,2.4e-07,69934.0,69925.0,0.01436]
[1771111293173,0.014307,69933.0,69925.0,0.028668]
[1771111293778,0.014307,69931.0,69925.0,0.01436]
[1771111294077,0.014308,69930.0,69925.0,0.01436]
[1771111295673,0.014308,69930.0,69923.0,0.01436]
[1771111296274,0.014308,69929.0,69923.0,0.01436]
[1771111296880,2.4e-07,69924.0,69920.0,0.157389]
[1771111297081,2.4e-07,69924.0,69921.0,0.028669]
[1771111297286,2.4e-07,69924.0,69922.0,0.014309]
[1771111297582,2.4e-07,69924.0,69923.0,0.014309]
[1771111298476,2.4e-07,69924.0,69922.0,0.014309]
[1771111298677,2.4e-07,69924.0,69921.0,0.01436]
[1771111298878,2.4e-07,69924.0,69922.0,0.014309]
[1771111299886,2.4e-07,69924.0,69923.0,0.014309]
[1771111300383,2.4e-07,69924.0,69922.0,0.014309]
[1771111301882,2.4e-07,69924.0,69920.0,0.157389]
[1771111301883,2.4e-07,69924.0,69920.0,0.14308]
[1771111302477,0.014309,69922.0,69917.0,0.01436]
[1771111302681,0.014309,69922.0,69914.0,0.014311]
[1771111302682,0.05715352,69917.0,69915.0,0.02867]
[1771111302982,0.01436,69924.0,69918.0,0.01431]
[1771111303181,3.7e-07,69917.0,69916.0,0.01431]
[1771111304689,3.7e-07,69917.0,69913.0,0.01436]
[1771111305086,3.7e-07,69917.0,69912.0,0.10028648]
[1771111305388,0.17150722,69920.0,69899.0,0.014314]
[1771111305389,0.01431,69916.0,69906.0,0.014312]
[1771111305591,0.07151909,69909.0,69906.0,0.01436]
[1771111308286,0.07151909,69909.0,69906.0,0.014312]
[1771111308688,0.07151909,69909.0,69906.0,0.028624]
[1771111308887,0.07151909,69909.0,69906.0,0.014312]
[1771111309694,0.07151909,69909.0,69906.0,0.028624]
[1771111310494,0.07151909,69909.0,69906.0,0.014312]
[1771111311787,0.07151909,69909.0,69907.0,0.014312]
[1771111313794,0.07151909,69909.0,69908.0,0.014312]
[1771111314993,0.07151909,69909.0,69907.0,0.014312]
[1771111315291,0.07151909,69909.0,69908.0,0.014312]
[1771111316697,0.01436,69911.0,69910.0,0.014311]
[1771111316900,9e-08,69907.0,69906.0,0.014312]
[1771111317085,0.01436,69911.0,69907.0,0.014312]
[1771111317287,7.8e-07,69907.0,69906.0,0.014312]
[1771111320004,7.8e-07,69907.0,69906.0,0.015312]
[1771111321291,7.8e-07,69907.0,69906.0,0.014312]
[1771111321699,7.8e-07,69907.0,69898.0,0.24820205]
[1771111321700,7.8e-07,69873.0,69872.0,0.11972968]
[1771111321998,6.3e-07,69873.0,69872.0,0.11972968]
[1771111322194,0.014314,69897.0,69881.0,0.11972768]
[1771111322401,0.014315,69893.0,69881.0,0.07681175]
[1771111322605,4.3e-07,69884.0,69883.0,0.014317]
[1771111322906,0.05723014,69884.0,69883.0,0.014317]
[1771111323804,0.05723014,69884.0,69882.0,0.0144]
[1771111324004,0.05723014,69884.0,69883.0,0.001]
[1771111324202,0.05723014,69884.0,69882.0,0.00120851]
[1771111324405,0.05723014,69884.0,69882.0,0.0144]
[1771111324813,0.05723014,69884.0,69881.0,0.014317]
[1771111326103,0.0144,69890.0,69882.0,0.014317]
[1771111326306,0.07154928,69882.0,69881.0,0.014317]
[1771111326507,0.014316,69889.0,69881.0,0.014317]
[1771111326707,0.07154919,69882.0,69881.0,0.014317]
[1771111327311,0.07154919,69882.0,69880.0,0.0144]
[1771111328813,0.07154919,69882.0,69872.0,0.22422968]
[1771111328814,0.07154919,69882.0,69872.0,0.14312]
[1771111329113,0.014318,69880.0,69873.0,0.0144]
[1771111329418,0.028636,69880.0,69873.0,0.0144]
[1771111329617,0.014318,69879.0,69873.0,0.0144]
[1771111330118,0.014318,69880.0,69873.0,0.0144]
[1771111330420,0.014318,69879.0,69873.0,0.0144]
[1771111331511,0.24305641,69882.0,69873.0,0.0144]
[1771111331512,0.07154919,69874.0,69873.0,0.0144]
[1771111331710,0.07169081,69874.0,69873.0,0.0144]
[1771111332712,0.07169081,69874.0,69873.0,0.0154]
[1771111332917,0.028717,69881.0,69873.0,0.029719]
[1771111333220,0.07156537,69874.0,69873.0,0.0154]
[1771111333418,0.07156537,69874.0,69873.0,0.001]
[1771111334217,0.07156537,69874.0,69873.0,0.015319]
[1771111335618,0.07156537,69874.0,69873.0,0.014319]
[1771111335820,0.07156537,69874.0,69873.0,0.015319]
[1771111337113,0.0144,69881.0,69879.0,0.014318]
[1771111337316,3.7e-07,69874.0,69873.0,0.015319]
[1771111337614,0.0144,69881.0,69874.0,0.014319]
[1771111337814,0.0124,69881.0,69878.0,0.014318]
[1771111338017,0.0144,69881.0,69873.0,0.001]
[1771111338213,0.014316,69886.0,69878.0,0.014318]
[1771111338523,0.014316,69886.0,69873.0,0.001]
[1771111338524,1.4e-07,69874.0,69873.0,0.015319]
[1771111338818,9.8e-07,69877.0,69876.0,0.014318]
[1771111339114,4.8e-07,69881.0,69880.0,0.014318]
[1771111339313,5.8e-07,69881.0,69880.0,0.028718]
[1771111340413,5.8e-07,69881.0,69880.0,0.029718]
[1771111341517,5.8e-07,69881.0,69880.0,0.015318]
[1771111341915,0.0715497,69882.0,69881.0,0.014317]
[1771111342314,0.0715497,69882.0,69880.0,0.015318]
[1771111342519,0.009316,69889.0,69880.0,0.015318]
[1771111342719,0.07154919,69882.0,69881.0,0.014317]
[1771111342915,0.06954919,69882.0,69881.0,0.014317]
[1771111343226,0.02354919,69882.0,69881.0,0.001]
[1771111343521,0.03786619,69882.0,69881.0,0.0144]
[1771111343820,0.014318,69880.0,69874.0,0.14316]
[1771111344019,0.1607038,69879.0,69875.0,0.0144]
[1771111344218,0.014317,69882.0,69875.0,0.0144]
[1771111344432,0.028634,69882.0,69876.0,0.0144]
[1771111344620,0.014317,69881.0,69875.0,0.0144]
[1771111344813,0.014317,69882.0,69871.0,0.028638]
[1771111344814,0.03746298,69874.0,69871.0,0.028638]
[1771111345017,0.03746298,69874.0,69872.0,0.028719]
[1771111345225,0.1750208,69881.0,69868.0,0.01432]
[1771111345421,0.07156507,69866.0,69865.0,0.0144]
[1771111346224,0.028638,69873.0,69865.0,0.0144]
[1771111346425,0.07156556,69866.0,69865.0,0.0144]
[1771111347834,0.07156556,69866.0,69865.0,0.0154]
[1771111348531,0.07156556,69866.0,69865.0,0.0144]
[1771111348732,0.07156556,69866.0,69865.0,0.0154]
[1771111348942,0.07156556,69866.0,69865.0,0.029721]
[1771111349432,0.07156556,69866.0,69865.0,0.0154]
[1771111350534,0.02836554,69866.0,69865.0,0.029721]
[1771111350735,0.02836554,69866.0,69865.0,0.028721]
[1771111351032,0.02836554,69866.0,69865.0,0.029721]
[1771111353630,0.014321,69865.0,69859.0,0.1432]
[1771111353834,0.02836554,69855.0,69853.0,0.0144]
[1771111354033,0.014323,69854.0,69838.0,0.014326]
[1771111354231,0.1607038,69853.0,69843.0,0.014325]
[1771111354430,0.01432,69852.0,69844.0,0.028725]
[1771111354631,0.01432,69852.0,69844.0,0.0144]
[1771111354830,0.01432,69851.0,69844.0,0.028725]
[1771111355029,0.0001172,69850.0,69844.0,0.028725]
[1771111355229,0.02836554,69855.0,69844.0,0.18802576]
[1771111355437,0.01432,69867.0,69858.0,0.014322]
[1771111355630,0.00764,69869.0,69859.0,0.0144]
[1771111355836,0.04285156,69858.0,69857.0,0.1432]
[1771111356037,0.01432,69868.0,69857.0,0.1576]
[1771111356237,0.07157356,69858.0,69857.0,0.171922]
[1771111356534,7.66e-05,69867.0,69859.0,0.014322]
[1771111356738,7.6e-07,69858.0,69857.0,0.1432]
[1771111356932,7.6e-07,69858.0,69857.0,0.171922]
[1771111357936,7.6e-07,69858.0,69857.0,0.172922]
[1771111359036,5.6e-07,69862.0,69860.0,0.014322]
[1771111359238,0.014319,69872.0,69864.0,0.014321]
[1771111359541,0.04284538,69864.0,69863.0,0.014321]
[1771111360231,0.04284538,69864.0,69863.0,0.028721]
[1771111360431,0.014319,69873.0,69864.0,0.014321]
[1771111360736,0.014319,69873.0,69863.0,0.0144]
[1771111360737,0.05724642,69864.0,69863.0,0.028721]
[1771111360931,0.05724642,69864.0,69863.0,0.029721]
[1771111363938,0.02624642,69864.0,69863.0,0.029721]
[1771111364134,0.014319,69873.0,69863.0,0.0144]
[1771111364440,0.07156761,69864.0,69863.0,0.0154]
[1771111365239,0.07156761,69864.0,69863.0,0.0144]
[1771111366541,0.17327126,69873.0,69863.0,0.0144]
[1771111366741,0.17327126,69873.0,69863.0,0.0154]
[1771111366943,0.07156762,69864.0,69863.0,0.0154]
[1771111367345,0.07156762,69864.0,69863.0,0.0144]
[1771111367645,0.07156762,69864.0,69863.0,0.0154]
[1771111369432,0.07156762,69864.0,69863.0,0.029721]
[1771111369638,0.18670926,69877.0,69868.0,0.01432]
[1771111369834,0.18670926,69877.0,69869.0,0.0144]
[1771111370041,0.11270926,69877.0,69870.0,0.0144]
[1771111370344,0.11270926,69877.0,69871.0,0.0144]
[1771111370749,6.9e-07,69866.0,69865.0,0.014321]
[1771111370941,7e-07,69866.0,69865.0,0.157521]
[1771111371134,7e-07,69866.0,69865.0,0.171921]
[1771111372042,7e-07,69866.0,69865.0,0.172921]
[1771111372946,7e-07,69866.0,69865.0,0.1586]
[1771111374641,0.07156557,69866.0,69865.0,0.1586]
[1771111375442,5.7e-07,69866.0,69865.0,0.1586]
[1771111375649,5.7e-07,69866.0,69865.0,0.172921]
[1771111376036,0.05724349,69868.0,69865.0,0.1586]
[1771111376237,0.014318,69877.0,69868.0,0.01432]
[1771111376438,0.014318,69877.0,69869.0,0.01436]
[1771111376643,0.07156088,69871.0,69869.0,0.01436]
[1771111382041,0.08587988,69871.0,69870.0,0.01436]
[1771111382242,0.01432,69870.0,69865.0,0.1432]
[1771111383052,0.01432,69870.0,69866.0,0.01436]
[1771111383457,0.01432,69870.0,69867.0,0.01436]
[1771111384356,0.07156088,69871.0,69869.0,0.01432]
[1771111384546,0.07156088,69871.0,69868.0,0.01436]
[1771111384742,0.02817,69876.0,69871.0,0.014319]
[1771111385054,0.014318,69880.0,69872.0,0.01436]
[1771111385246,0.014317,69881.0,69872.0,0.01436]
[1771111385450,0.01436,69883.0,69876.0,0.014318]
[1771111385651,0.014316,69886.0,69877.0,0.01436]
[1771111385953,0.17327126,69876.0,69825.0,0.16248063]
[1771111386145,0.17327126,69876.0,69787.0,0.71685]
[1771111386146,0.05719368,69845.0,69841.0,0.014326]
[1771111386351,0.05719368,69845.0,69840.0,0.014326]
[1771111386352,0.03390973,69845.0,69842.0,0.0144]
[1771111387755,0.014325,69844.0,69842.0,0.0144]
[1771111387946,0.04823473,69845.0,69843.0,0.0144]
[1771111388153,0.03390973,69845.0,69840.0,0.1432]
[1771111388356,0.014324,69847.0,69840.0,0.1432]
[1771111388558,0.07161332,69845.0,69840.0,0.1432]
[1771111388856,0.07161332,69845.0,69841.0,0.0144]
[1771111390158,0.08593832,69845.0,69841.0,0.0144]
[1771111390855,0.07161332,69845.0,69841.0,0.0144]
[1771111391055,0.08593832,69845.0,69841.0,0.0144]
[1771111392463,0.07161332,69845.0,69841.0,0.0144]
[1771111393955,0.16350206,69844.0,69807.0,0.66353241]
[1771111394156,0.1433,69815.0,69753.0,0.18505428]
[1771111394455,0.1433,69815.0,69738.0,0.14324]
[1771111394456,0.07161332,69790.0,69759.0,0.18505428]
[1771111394647,0.08691493,69782.0,69761.0,0.17964004]
[1771111394853,0.014338,69780.0,69761.0,0.17464004]
[1771111395059,0.00010898,69779.0,69764.0,0.17964004]
[1771111395558,0.00010898,69779.0,69769.0,0.17964004]
[1771111395763,0.01452,69783.0,69770.0,0.01452]
[1771111395953,0.014338,69779.0,69771.0,0.01452]
[1771111396254,0.014338,69779.0,69760.0,0.17964004]
[1771111396255,0.01452,69778.0,69759.0,0.14324]
[1771111396458,0.01452,69778.0,69760.0,0.028862]
[1771111396651,6.143e-05,69777.0,69763.0,0.014341]
[1771111396848,6.143e-05,69777.0,69760.0,0.01452]
[1771111397049,6.143e-05,69777.0,69762.0,0.014342]
[1771111397252,8.8e-07,69761.0,69759.0,0.32288004]
[1771111397452,0.157578,69779.0,69759.0,0.32288004]
[1771111397453,0.01452,69775.0,69763.0,0.014341]
[1771111397656,0.01452,69775.0,69765.0,0.014341]
[1771111397958,2.5e-07,69761.0,69759.0,0.32288004]
[1771111398157,8.3e-07,69761.0,69759.0,0.32288004]
[1771111398360,0.01452,69775.0,69760.0,0.01452]
[1771111398855,2.8e-07,69761.0,69760.0,0.20850204]
[1771111399054,0.10062792,69780.0,69768.0,0.014341]
[1771111399262,6.1e-07,69761.0,69759.0,0.14424]
[1771111399560,7.8e-07,69761.0,69760.0,0.19416004]
[1771111399756,0.028858,69779.0,69767.0,0.014341]
[1771111400060,4.4e-07,69761.0,69760.0,0.18064004]
[1771111400357,3.9e-07,69761.0,69760.0,0.19516004]
[1771111400562,0.10320417,69779.0,69765.0,0.014341]
[1771111400749,0.01452,69778.0,69766.0,0.01452]
[1771111400954,4.8e-07,69761.0,69760.0,0.19498204]
[1771111401156,0.014339,69776.0,69760.0,0.20950204]
[1771111401350,0.01434,69772.0,69761.0,0.014342]
[1771111401549,7.5e-07,69758.0,69756.0,0.01452]
[1771111401757,0.01434,69770.0,69760.0,0.014342]
[1771111401962,0.17218,69772.0,69757.0,0.014343]
[1771111402162,7.5e-07,69758.0,69756.0,0.01452]
[1771111402358,0.15784,69772.0,69756.0,0.01452]
[1771111402563,0.15784,69772.0,69762.0,0.014342]
[1771111402863,7.5e-07,69758.0,69756.0,0.01552]
[1771111403165,0.01434,69771.0,69761.0,0.014342]
[1771111403363,0.01434,69771.0,69756.0,0.01452]
[1771111403564,7.5e-07,69758.0,69757.0,0.014343]
[1771111403864,0.01434,69771.0,69756.0,0.01452]
[1771111404169,7.5e-07,69758.0,69757.0,0.014343]
[1771111404352,7.5e-07,69758.0,69756.0,0.01452]
[1771111404353,0.01434,69770.0,69756.0,0.01452]
[1771111404555,0.05733296,69758.0,69756.0,0.028813]
[1771111404755,0.01434,69770.0,69757.0,0.014343]
[1771111404962,3.7e-07,69758.0,69757.0,0.014343]
[1771111405265,0.01434,69771.0,69758.0,0.014343]
[1771111405563,9.6e-07,69758.0,69757.0,0.014343]
[1771111405770,0.01434,69771.0,69756.0,0.028813]
[1771111405967,9.5e-07,69758.0,69756.0,0.028813]
[1771111406264,0.01434,69771.0,69756.0,0.028813]
[1771111406265,0.01452,69769.0,69756.0,0.01447]
[1771111406461,0.02647343,69769.0,69756.0,0.01447]
[1771111406661,0.04367596,69758.0,69757.0,0.001]
[1771111406969,0.04367596,69758.0,69753.0,0.028863]
[1771111407167,0.04367596,69758.0,69751.0,0.14332]
[1771111407359,0.014342,69762.0,69752.0,0.014344]
[1771111407559,0.02547764,69763.0,69751.0,0.04229588]
[1771111407869,0.01452,69763.0,69750.0,0.01452]
[1771111408166,0.01452,69763.0,69753.0,0.014344]
[1771111408660,0.01452,69763.0,69755.0,0.014343]
[1771111408867,0.01452,69763.0,69751.0,0.01452]
[1771111409066,0.01452,69763.0,69756.0,0.014343]
[1771111409262,0.014341,69766.0,69746.0,0.19398504]
[1771111409263,2.9e-07,69750.0,69746.0,0.19398504]
[1771111409470,3.3e-07,69750.0,69748.0,0.17964004]
[1771111409668,0.01452,69762.0,69756.0,0.014343]
[1771111409966,7.1e-07,69750.0,69748.0,0.17964004]
[1771111410162,0.02865232,69750.0,69748.0,0.17964004]
[1771111410469,0.01452,69762.0,69748.0,0.17964004]
[1771111410470,0.01452,69762.0,69756.0,0.014343]
[1771111410669,3.3e-07,69750.0,69749.0,0.01452]
[1771111410867,0.1917542,69761.0,69749.0,0.028865]
[1771111411070,0.1774122,69761.0,69749.0,0.028865]
[1771111411366,0.07168459,69750.0,69749.0,0.028865]
[1771111411566,0.014343,69759.0,69749.0,0.028865]
[1771111411767,0.014343,69759.0,69750.0,0.014344]
[1771111411961,5.9e-07,69741.0,69737.0,0.014347]
[1771111412167,0.01452,69752.0,69749.0,0.014344]
[1771111412470,9.9e-07,69741.0,69740.0,0.014346]
[1771111412660,0.028864,69753.0,69743.0,0.014346]
[1771111412865,0.028864,69753.0,69740.0,0.028866]
[1771111412866,4e-07,69741.0,69740.0,0.028866]
[1771111413060,0.04300222,69741.0,69740.0,0.028866]
[1771111413268,0.01452,69753.0,69745.0,0.014345]
[1771111413566,0.01452,69753.0,69741.0,0.014346]
[1771111413768,8.1e-07,69741.0,69740.0,0.028866]
[1771111414064,0.01452,69753.0,69741.0,0.014346]
[1771111414269,6.1e-07,69741.0,69740.0,0.01452]
[1771111414465,0.01452,69753.0,69740.0,0.19416004]
[1771111414666,0.45168851,69807.0,69740.0,0.19416004]
[1771111414667,0.1434,69779.0,69760.0,0.17964004]
[1771111414863,0.01452,69784.0,69770.0,0.01434]
[1771111415059,9.1e-07,69772.0,69770.0,0.01434]
[1771111415370,0.01452,69784.0,69769.0,0.01452]
[1771111415570,0.01452,69784.0,69775.0,0.014339]
[1771111415870,0.01452,69784.0,69771.0,0.01434]
[1771111415871,3.4e-07,69772.0,69771.0,0.01434]
[1771111416168,0.01452,69784.0,69775.0,0.014339]
[1771111416365,1.6e-07,69772.0,69771.0,0.01434]
[1771111416557,0.028857,69784.0,69770.0,0.01534]
[1771111416761,5.7e-07,69772.0,69770.0,0.01534]
[1771111416966,0.028857,69784.0,69770.0,0.01534]
[1771111416967,0.01452,69784.0,69773.0,0.01434]
[1771111417267,7.8e-07,69772.0,69770.0,0.001]
[1771111417470,0.01452,69784.0,69776.0,0.014339]
[1771111417670,0.05731816,69776.0,69773.0,0.01452]
[1771111417870,1.4e-07,69776.0,69775.0,0.014339]
[1771111418571,8.7e-07,69776.0,69775.0,0.014339]
[1771111419175,8.7e-07,69776.0,69775.0,0.014289]
[1771111419466,0.01452,69786.0,69783.0,0.014337]
[1771111419865,0.01452,69786.0,69774.0,0.19397904]
[1771111419866,4.4e-07,69776.0,69774.0,0.19397904]
[1771111420059,0.01452,69787.0,69773.0,0.01452]
[1771111420268,0.01452,69787.0,69782.0,0.014338]
[1771111420462,1e-07,69776.0,69775.0,0.014339]
[1771111420666,5.4e-07,69776.0,69775.0,0.2051662]
[1771111420868,0.01452,69787.0,69782.0,0.014338]
[1771111421070,7.7e-07,69778.0,69777.0,0.014339]
[1771111421267,5.9e-07,69778.0,69777.0,0.014339]
[1771111421666,0.01452,69790.0,69782.0,0.014338]
[1771111421872,2.2e-07,69782.0,69780.0,0.16218661]
[1771111422073,0.01452,69790.0,69784.0,0.014337]
[1771111422272,3e-07,69782.0,69781.0,0.014338]
[1771111422875,0.014335,69794.0,69785.0,0.014337]
[1771111423068,3.1e-07,69782.0,69781.0,0.21623603]
[1771111423268,0.01452,69793.0,69786.0,0.014337]
[1771111423469,3.8e-07,69783.0,69782.0,0.21623603]
[1771111423672,0.01452,69793.0,69787.0,0.014337]
[1771111423867,8.7e-07,69783.0,69782.0,0.21623603]
[1771111424068,0.05731245,69783.0,69782.0,0.20189803]
[1771111424279,0.15792,69800.0,69794.0,0.014335]
[1771111424474,6e-07,69790.0,69789.0,0.014336]
[1771111424674,6e-07,69790.0,69788.0,0.014336]
[1771111424675,0.07164165,69790.0,69788.0,0.014336]
[1771111424881,0.01452,69800.0,69788.0,0.014336]
[1771111425074,0.3226712,69799.0,69790.0,0.014336]
[1771111425382,0.0573075,69790.0,69789.0,0.014336]
[1771111426579,0.0573075,69790.0,69789.0,0.015336]
[1771111426875,0.01452,69799.0,69792.0,0.014335]
[1771111427081,5.1e-07,69790.0,69789.0,0.001]
[1771111427282,5.1e-07,69790.0,69789.0,0.014336]
[1771111428887,9.9e-07,69790.0,69789.0,0.014336]
[1771111429086,8.8e-07,69790.0,69789.0,0.014336]
[1771111429279,9.8e-07,69793.0,69792.0,0.21623403]
[1771111429485,0.01452,69806.0,69800.0,0.014334]
[1771111429684,5.2e-07,69797.0,69796.0,0.014335]
[1771111430183,0.1434,69808.0,69804.0,0.014333]
[1771111430385,0.1434,69808.0,69799.0,0.014334]
[1771111430386,1e-07,69803.0,69801.0,0.014334]
[1771111430584,0.22484569,69802.0,69792.0,0.001]
[1771111430778,0.22484769,69793.0,69783.0,0.028674]
[1771111430980,0.014336,69789.0,69774.0,0.014339]
[1771111431289,1e-07,69783.0,69778.0,0.014338]
[1771111431583,0.014334,69800.0,69783.0,0.20189803]
[1771111431778,0.014331,69815.0,69783.0,0.20189803]
[1771111431779,6e-08,69788.0,69787.0,0.014337]
[1771111431978,0.01452,69796.0,69790.0,0.014336]
[1771111432184,9.4e-07,69788.0,69787.0,0.014337]
[1771111432379,0.05792075,69796.0,69791.0,0.014336]
[1771111432581,0.05730719,69790.0,69788.0,0.028856]
[1771111432888,0.05730719,69790.0,69789.0,0.014336]
[1771111433684,0.1434,69798.0,69790.0,0.014336]
[1771111433890,3e-07,69790.0,69789.0,0.014336]
[1771111435686,3e-07,69790.0,69788.0,0.01452]
[1771111436088,3e-07,69790.0,69788.0,0.028856]
[1771111436291,3e-07,69790.0,69789.0,0.014336]
[1771111436590,3e-07,69790.0,69788.0,0.028856]
[1771111436988,0.0143363,69790.0,69780.0,0.14336]
[1771111437181,3e-07,69790.0,69781.0,0.01452]
[1771111437384,0.04358275,69789.0,69787.0,0.028674]
[1771111437593,0.04358275,69789.0,69784.0,0.014337]
[1771111437793,3e-07,69790.0,69785.0,0.014337]
[1771111437997,0.04358275,69787.0,69786.0,0.014337]
[1771111438494,0.04358275,69787.0,69785.0,0.014337]
[1771111438689,3e-07,69790.0,69787.0,0.014337]
[1771111438896,3e-07,69790.0,69786.0,0.014337]
[1771111439090,3e-07,69790.0,69787.0,0.014337]
[1771111439285,3e-07,69790.0,69789.0,0.014336]
[1771111439495,3e-07,69790.0,69788.0,0.014336]
[1771111439895,3e-07,69790.0,69789.0,0.014336]
[1771111440189,2.5e-07,69784.0,69783.0,0.21623603]
[1771111440390,0.01452,69799.0,69787.0,0.20189803]
[1771111440586,0.01452,69799.0,69794.0,0.014335]
[1771111440987,5e-07,69790.0,69788.0,0.01452]
[1771111441196,2.7e-07,69790.0,69789.0,0.014336]
[1771111441788,3e-07,69790.0,69789.0,0.014336]
[1771111442190,3e-07,69790.0,69789.0,0.21623403]
[1771111442390,6.8e-07,69790.0,69789.0,0.23057044]
[1771111442594,6.8e-07,69790.0,69789.0,0.04300841]
[1771111442990,2.7e-07,69790.0,69789.0,0.02867241]
[1771111443497,6.8e-07,69790.0,69789.0,0.04300841]
[1771111443695,0.21051169,69814.0,69794.0,0.13025453]
[1771111443998,0.21051169,69814.0,69756.0,0.717177]
[1771111443999,0.014332,69809.0,69796.0,0.21623303]
[1771111444299,0.172212,69810.0,69800.0,0.014334]
[1771111444500,3.1e-07,69800.0,69798.0,0.014334]
[1771111444795,4e-08,69800.0,69797.0,0.24509044]
[1771111445901,4e-08,69800.0,69799.0,0.014334]
[1771111447300,4e-08,69800.0,69799.0,0.015334]
[1771111447694,0.01433404,69800.0,69799.0,0.001]
[1771111447890,0.01433404,69800.0,69788.0,0.20189803]
[1771111447891,0.01433404,69800.0,69794.0,0.01448]
[1771111448094,0.05715981,69793.0,69792.0,0.01448]
[1771111449397,0.21051169,69804.0,69792.0,0.028816]
[1771111449598,0.014334,69803.0,69792.0,0.05748841]
[1771111449799,0.07164042,69793.0,69792.0,0.04315241]
[1771111450000,0.03564042,69793.0,69792.0,0.05748841]
[1771111450197,0.014334,69803.0,69792.0,0.05748841]
[1771111450395,3.2e-07,69793.0,69792.0,0.04315241]
[1771111450601,3.2e-07,69793.0,69792.0,0.05748841]
[1771111450791,3.2e-07,69793.0,69792.0,0.04315241]
[1771111451303,3.2e-07,69793.0,69792.0,0.05748841]
[1771111455305,3.2e-07,69793.0,69792.0,0.01448]
[1771111455505,3.2e-07,69793.0,69792.0,0.028816]
[1771111455806,3.2e-07,69793.0,69792.0,0.01448]
[1771111456004,0.028813,69803.0,69792.0,0.01448]
[1771111456200,0.01448,69803.0,69794.0,0.02867]
[1771111456504,0.01448,69803.0,69793.0,0.01448]
[1771111456700,0.01448,69803.0,69795.0,0.014335]
[1771111456897,0.01448,69803.0,69793.0,0.01448]
[1771111457301,0.01448,69803.0,69796.0,0.014335]
[1771111457498,0.01448,69803.0,69794.0,0.014335]
[1771111457698,0.01448,69803.0,69793.0,0.01448]
[1771111457908,0.01448,69803.0,69792.0,0.028816]
[1771111458201,0.01448,69803.0,69796.0,0.014335]
[1771111458400,0.01448,69803.0,69792.0,0.014336]
[1771111458704,0.01448,69803.0,69792.0,0.01448]
[1771111458906,0.01448,69803.0,69796.0,0.014335]
[1771111459200,0.01448,69803.0,69792.0,0.028816]
[1771111459201,0.01448,69803.0,69792.0,0.01448]
[1771111459405,0.01448,69803.0,69797.0,0.014334]
[1771111459906,0.01448,69803.0,69793.0,0.01448]
[1771111460101,0.01448,69803.0,69797.0,0.014334]
[1771111460307,0.01448,69803.0,69794.0,0.01448]
[1771111460507,0.01448,69807.0,69800.0,0.014334]
[1771111460900,0.01448,69807.0,69798.0,0.014334]
[1771111461100,0.014332,69812.0,69799.0,0.01448]
[1771111461300,0.014332,69812.0,69802.0,0.014333]